bitfinex/quotes_BTCUSD_20250928
["timestamp","ask_amount","ask_price","bid_price","bid_amount"]
[1759019593108,8.52090263,110010.0,110000.0,0.02473391]
[1759019593343,8.61176698,110010.0,110000.0,0.02573391]
[1759019593549,8.22968698,110010.0,110000.0,0.02673391]
[1759019593767,8.61184698,110010.0,110000.0,0.02473391]
[1759019593954,8.61484698,110010.0,110000.0,0.02473391]
[1759019594162,8.61784698,110010.0,110000.0,0.02473391]
[1759019596049,8.23568698,110010.0,110000.0,0.02473391]
[1759019596422,8.20149126,110010.0,110000.0,0.02473391]
[1759019596598,8.58389126,110010.0,110000.0,0.02473391]
[1759019598961,8.20149126,110010.0,110000.0,0.02473391]
[1759019599100,8.48913126,110010.0,110000.0,0.02473391]
[1759019599312,8.58389126,110010.0,110000.0,0.02473391]
[1759019599542,8.59815586,110010.0,110000.0,0.02473391]
[1759019602600,8.67482216,110010.0,110000.0,0.02473391]
[1759019605446,8.29242216,110010.0,110000.0,0.02473391]
[1759019605644,8.67498216,110010.0,110000.0,0.02473391]
[1759019606112,8.27815756,110010.0,110000.0,0.02473391]
[1759019606339,8.63518556,110010.0,110000.0,0.02473391]
[1759019606557,8.63514556,110010.0,110000.0,0.02473391]
[1759019607207,8.25262556,110010.0,110000.0,0.02473391]
[1759019607459,8.25262556,110010.0,110000.0,0.02972391]
[1759019607460,8.54038556,110010.0,110000.0,0.02972391]
[1759019607642,8.63514556,110010.0,110000.0,0.02972391]
[1759019607786,8.63514556,110010.0,110000.0,0.02473391]
[1759019608429,8.63512808,110010.0,110000.0,0.01618929]
[1759019609291,8.64939264,110010.0,110000.0,0.01618929]
[1759019612322,8.48170084,110010.0,110000.0,0.01618929]
[1759019613308,9.18529655,110010.0,110000.0,0.01618929]
[1759019613550,8.50163345,110010.0,110000.0,0.01618929]
[1759019614469,0.18183471,109990.0,109980.0,0.05293]
[1759019614662,7.96171318,109990.0,109980.0,0.05512909]
[1759019614834,7.98442318,109990.0,109980.0,0.05512909]
[1759019615034,7.9986891,109990.0,109980.0,0.05512909]
[1759019615626,7.9986891,109990.0,109980.0,0.05612909]
[1759019616025,7.9986891,109990.0,109980.0,0.05384162]
[1759019616229,7.9986891,109990.0,109980.0,0.05484162]
[1759019617544,7.98442318,109990.0,109980.0,0.05484162]
[1759019618151,7.98640318,109990.0,109980.0,0.05484162]
[1759019619465,8.21429088,109990.0,109980.0,0.00213909]
[1759019619700,8.21624088,109990.0,109980.0,0.00213909]
[1759019619908,8.34177288,109990.0,109980.0,0.00213909]
[1759019620417,8.36914414,109990.0,109980.0,0.00213909]
[1759019620597,8.38341167,109990.0,109980.0,0.00213909]
[1759019621014,8.38341167,109990.0,109980.0,0.00013909]
[1759019621239,8.38641167,109990.0,109980.0,0.00013909]
[1759019622451,8.38941167,109990.0,109980.0,0.00013909]
[1759019624584,9.16542373,109990.0,109980.0,0.00013909]
[1759019624838,0.18185124,109980.0,109970.0,0.02384]
[1759019625058,0.18188432,109960.0,109950.0,0.05333]
[1759019625285,0.18188432,109960.0,109950.0,0.00543638]
[1759019625286,8.18965049,109960.0,109950.0,0.00543638]
[1759019625504,8.21462049,109960.0,109950.0,0.00543638]
[1759019625890,8.21264049,109960.0,109950.0,0.00543638]
[1759019626313,7.92428049,109960.0,109950.0,0.00543638]
[1759019626524,8.21260049,109960.0,109950.0,0.00543638]
[1759019626731,8.03079617,109960.0,109950.0,0.00843638]
[1759019626946,7.80290847,109960.0,109950.0,0.05543638]
[1759019627169,7.51450847,109960.0,109950.0,0.05543638]
[1759019627378,7.80390847,109960.0,109950.0,0.05543638]
[1759019627594,7.80390847,109960.0,109950.0,0.05743638]
[1759019627790,7.51550847,109960.0,109950.0,0.05743638]
[1759019628212,7.80410847,109960.0,109950.0,0.05743638]
[1759019628657,7.5287778,109960.0,109950.0,0.05743638]
[1759019628818,7.8173778,109960.0,109950.0,0.05743638]
[1759019629024,7.8173778,109960.0,109950.0,0.06043638]
[1759019629229,7.84933078,109960.0,109950.0,0.06043638]
[1759019629408,7.84957078,109960.0,109950.0,0.06043638]
[1759019631103,7.56073078,109960.0,109950.0,0.06043638]
[1759019631311,7.84953078,109960.0,109950.0,0.06043638]
[1759019632149,7.84954213,109960.0,109950.0,0.06043638]
[1759019634355,7.56074213,109960.0,109950.0,0.06043638]
[1759019634614,7.84942213,109960.0,109950.0,0.06043638]
[1759019635683,7.56074213,109960.0,109950.0,0.06043638]
[1759019635898,7.84938213,109960.0,109950.0,0.06043638]
[1759019636300,7.8351528,109960.0,109950.0,0.06043638]
[1759019638889,7.8349928,109960.0,109950.0,0.06043638]
[1759019639090,7.6071051,109960.0,109950.0,0.06043638]
[1759019639294,7.39348632,109960.0,109950.0,0.06043638]
[1759019639495,7.84926172,109960.0,109950.0,0.06043638]
[1759019640174,7.62137402,109960.0,109950.0,0.06043638]
[1759019640768,7.33285402,109960.0,109950.0,0.06043638]
[1759019641719,7.10496632,109960.0,109950.0,0.06043638]
[1759019641927,7.33285402,109960.0,109950.0,0.24233724]
[1759019645612,7.33285402,109960.0,109950.0,0.06043638]
[1759019646267,7.3185851,109960.0,109950.0,0.06043638]
[1759019647878,7.0906974,109960.0,109950.0,0.24033724]
[1759019648070,7.3185851,109960.0,109950.0,0.24033724]
[1759019648200,7.3185851,109960.0,109950.0,0.24233724]
[1759019648401,7.3185851,109960.0,109950.0,0.24733724]
[1759019650717,0.28893802,109960.0,109950.0,0.24733724]
[1759019650946,8.28893802,109960.0,109950.0,0.24733724]
[1759019652739,8.2278877,109960.0,109950.0,0.24733724]
[1759019653193,8.49055221,109960.0,109950.0,0.08542638]
[1759019653432,8.77907221,109960.0,109950.0,0.08542638]
[1759019654068,8.77712221,109960.0,109950.0,0.08542638]
[1759019656866,8.77514221,109960.0,109950.0,0.08757638]
[1759019657116,8.77712221,109960.0,109950.0,0.09058638]
[1759019657528,8.77712221,109960.0,109950.0,0.08757638]
[1759019657962,8.48860221,109960.0,109950.0,0.08757638]
[1759019658160,8.77696221,109960.0,109950.0,0.08757638]
[1759019661697,8.77684221,109960.0,109950.0,0.09072638]
[1759019662278,8.54689451,109960.0,109950.0,0.09072638]
[1759019662747,8.62289678,109960.0,109950.0,0.09072638]
[1759019663631,8.31900681,109960.0,109950.0,0.09072638]
[1759019664576,8.32540811,109960.0,109950.0,0.09072638]
[1759019665414,8.32738811,109960.0,109950.0,0.09072638]
[1759019666630,8.63127808,109960.0,109950.0,0.09072638]
[1759019670515,8.63127808,109960.0,109950.0,0.08757638]
[1759019671597,8.34311808,109960.0,109950.0,0.08757638]
[1759019671799,8.34113808,109960.0,109950.0,0.09072638]
[1759019672016,8.03724811,109960.0,109950.0,0.09072638]
[1759019675137,8.03922811,109960.0,109950.0,0.09072638]
[1759019675360,8.03724811,109960.0,109950.0,0.09072638]
[1759019679720,8.03724811,109960.0,109950.0,0.10891646]
[1759019680166,8.03725403,109960.0,109950.0,0.10891646]
[1759019682088,7.85922141,109960.0,109950.0,0.29081732]
[1759019682287,8.03725403,109960.0,109950.0,0.27262724]
[1759019683062,8.03725403,109960.0,109950.0,0.09072638]
[1759019683063,8.03923403,109960.0,109950.0,0.09072638]
[1759019683267,8.03923403,109960.0,109950.0,0.10891646]
[1759019684067,8.03725403,109960.0,109950.0,0.29081732]
[1759019684264,8.03725403,109960.0,109950.0,0.27262724]
[1759019694585,8.03923403,109960.0,109950.0,0.27262724]
[1759019697451,8.03725403,109960.0,109950.0,0.27262724]
[1759019697670,8.03725403,109960.0,109950.0,0.56002724]
[1759019697972,8.03725403,109960.0,109950.0,0.27262724]
[1759019698143,8.03725403,109960.0,109950.0,0.56002724]
[1759019699143,8.03923403,109960.0,109950.0,0.56002724]
[1759019700481,8.03725403,109960.0,109950.0,0.56002724]
[1759019700853,8.03923403,109960.0,109950.0,0.56002724]
[1759019703394,0.03725403,109960.0,109950.0,0.59017914]
[1759019703882,0.03725403,109960.0,109950.0,0.60666911]
[1759019704088,0.03725403,109960.0,109950.0,0.68493914]
[1759019704295,0.03725403,109960.0,109950.0,0.71230265]
[1759019704709,0.03725403,109960.0,109950.0,0.61750265]
[1759019704914,0.03725403,109960.0,109950.0,0.71230265]
[1759019706441,0.03725403,109960.0,109950.0,0.33014265]
[1759019706636,0.03725403,109960.0,109950.0,0.71230265]
[1759019706882,0.03725403,109960.0,109950.0,0.33014265]
[1759019707094,0.03725403,109960.0,109950.0,0.71230265]
[1759019707703,0.03725403,109960.0,109950.0,0.97680265]
[1759019707907,0.03725403,109960.0,109950.0,0.88200265]
[1759019708129,0.03725403,109960.0,109950.0,0.97680265]
[1759019708328,0.03940403,109960.0,109950.0,0.59149265]
[1759019708528,0.03940403,109960.0,109950.0,0.97361265]
[1759019709083,0.03940403,109960.0,109950.0,0.59149265]
[1759019709288,0.03940403,109960.0,109950.0,0.97361265]
[1759019710288,0.03940403,109960.0,109950.0,0.87885265]
[1759019710536,0.03940403,109960.0,109950.0,0.97655265]
[1759019711270,0.03940403,109960.0,109950.0,0.59149265]
[1759019711727,8.04118403,109960.0,109950.0,0.87670265]
[1759019712402,8.345074,109960.0,109950.0,0.37728989]
[1759019712633,8.345074,109960.0,109950.0,0.66464989]
[1759019713543,8.345074,109960.0,109950.0,0.40014989]
[1759019714635,8.03940403,109960.0,109950.0,0.40014989]
[1759019714863,8.343294,109960.0,109950.0,0.40014989]
[1759019715298,8.03940403,109960.0,109950.0,0.58205075]
[1759019715744,8.03940403,109960.0,109950.0,0.40014989]
[1759019716533,8.03940403,109960.0,109950.0,0.58205075]
[1759019716949,8.03940403,109960.0,109950.0,0.58400075]
[1759019717341,8.03940403,109960.0,109950.0,0.40209989]
[1759019717557,8.03940403,109960.0,109950.0,0.58400075]
[1759019719548,8.03940403,109960.0,109950.0,0.58694075]
[1759019722696,8.03940403,109960.0,109950.0,0.58400075]
[1759019724618,8.03940403,109960.0,109950.0,0.58697075]
[1759019724947,8.26731365,109960.0,109950.0,0.58400075]
[1759019730949,8.26731365,109960.0,109950.0,0.58205075]
[1759019731156,8.26731365,109960.0,109950.0,0.29469075]
[1759019731384,8.26731365,109960.0,109950.0,0.58225075]
[1759019731800,8.26731365,109960.0,109950.0,0.11278989]
[1759019732004,8.26731365,109960.0,109950.0,0.40030989]
[1759019735955,8.26731365,109960.0,109950.0,0.58430075]
[1759019738301,7.8613228,109960.0,109950.0,0.58430075]
[1759019738511,8.22790962,109960.0,109950.0,0.58430075]
[1759019738924,8.22790962,109960.0,109950.0,0.58727075]
[1759019739713,8.22790962,109960.0,109950.0,0.40030989]
[1759019741468,8.26575867,109960.0,109950.0,0.11278989]
[1759019741657,8.26575867,109960.0,109950.0,0.40014989]
[1759019742060,8.49366829,109960.0,109950.0,0.40014989]
[1759019742298,8.49366829,109960.0,109950.0,0.11278989]
[1759019742446,8.49366829,109960.0,109950.0,0.40014989]
[1759019743650,8.03784905,109960.0,109950.0,0.40014989]
[1759019743802,8.49366829,109960.0,109950.0,0.40014989]
[1759019744166,8.49366829,109960.0,109950.0,0.40046989]
[1759019744689,8.26575867,109960.0,109950.0,0.40046989]
[1759019747661,8.49366829,109960.0,109950.0,0.11278989]
[1759019747907,8.49366829,109960.0,109950.0,0.40082989]
[1759019749116,8.49366829,109960.0,109950.0,0.40074989]
[1759019751855,8.78158829,109960.0,109950.0,0.40074989]
[1759019753368,8.32576905,109960.0,109950.0,0.40074989]
[1759019753596,8.78158829,109960.0,109950.0,0.40074989]
[1759019755123,8.78799529,109960.0,109950.0,0.40074989]
[1759019763177,8.78799529,109960.0,109950.0,0.11278989]
[1759019763372,8.78799529,109960.0,109950.0,0.40026989]
[1759019764429,8.78799529,109960.0,109950.0,0.37290638]
[1759019770423,8.78799529,109960.0,109950.0,0.08542638]
[1759019770635,8.78799529,109960.0,109950.0,0.37282638]
[1759019771792,8.78747529,109960.0,109950.0,0.08542638]
[1759019773353,8.50007529,109960.0,109950.0,0.08542638]
[1759019773566,8.78747529,109960.0,109950.0,0.08753638]
[1759019773754,8.78747529,109960.0,109950.0,0.08542638]
[1759019775577,8.50007529,109960.0,109950.0,0.08542638]
[1759019775798,8.78747529,109960.0,109950.0,0.08542638]
[1759019776150,8.78747529,109960.0,109950.0,0.09055638]
[1759019776922,8.33165605,109960.0,109950.0,0.09055638]
[1759019777126,8.78747529,109960.0,109950.0,0.09055638]
[1759019777949,8.78747529,109960.0,109950.0,0.08542638]
[1759019778159,9.01538491,109960.0,109950.0,0.08542638]
[1759019779228,9.01538491,109960.0,109950.0,0.08042638]
[1759019779229,9.19726923,109960.0,109950.0,0.08042638]
[1759019779430,9.19726923,109960.0,109950.0,0.07542638]
[1759019779810,9.19726923,109960.0,109950.0,0.08042638]
[1759019780649,9.19727006,109960.0,109950.0,0.08042638]
[1759019781036,9.2115387,109960.0,109950.0,0.08042638]
[1759019784191,9.02965438,109960.0,109950.0,0.08042638]
[1759019784662,8.9539863,109960.0,109950.0,0.08042638]
[1759019784893,8.95398626,109960.0,109950.0,0.08042638]
[1759019788559,8.83420194,109960.0,109950.0,0.08042638]
[1759019788791,9.12160194,109960.0,109950.0,0.08042638]
[1759019789244,9.12160194,109960.0,109950.0,0.03042638]
[1759019789447,9.12160194,109960.0,109950.0,0.02842638]
[1759019789934,9.12160194,109960.0,109950.0,0.02542638]
[1759019790345,9.12160194,109960.0,109950.0,0.02642638]
[1759019790847,8.83420194,109960.0,109950.0,0.02642638]
[1759019791061,9.23610826,109960.0,109950.0,0.02642638]
[1759019791259,9.28901751,109960.0,109950.0,0.02642638]
[1759019791651,9.30328772,109960.0,109950.0,0.02642638]
[1759019791851,9.30528772,109960.0,109950.0,0.02642638]
[1759019792060,9.30528772,109960.0,109950.0,0.02542638]
[1759019792261,9.30628772,109960.0,109950.0,0.02542638]
[1759019793940,8.92408772,109960.0,109950.0,0.02542638]
[1759019794060,9.30628772,109960.0,109950.0,0.02542638]
[1759019794674,8.92408772,109960.0,109950.0,0.02542638]
[1759019794887,9.30628772,109960.0,109950.0,0.02542638]
[1759019795311,8.92408772,109960.0,109950.0,0.02542638]
[1759019795557,9.30628772,109960.0,109950.0,0.02542638]
[1759019796525,9.29201751,109960.0,109950.0,0.02542638]
[1759019796942,9.5960479,109960.0,109950.0,0.02542638]
[1759019797736,9.5960879,109960.0,109950.0,0.02542638]
[1759019799280,9.59606653,109960.0,109950.0,0.02542638]
[1759019799486,9.70728032,109960.0,109950.0,0.02542638]
[1759019799693,9.80728032,109960.0,109950.0,0.02542638]
[1759019800065,9.64569035,109960.0,109950.0,0.02542638]
[1759019800261,9.73849035,109960.0,109950.0,0.02542638]
[1759019800695,9.36125035,109960.0,109950.0,0.02542638]
[1759019800843,9.74349035,109960.0,109950.0,0.02542638]
[1759019801253,9.36125035,109960.0,109950.0,0.02542638]
[1759019801487,9.74349035,109960.0,109950.0,0.02542638]
[1759019801754,9.74249035,109960.0,109950.0,0.02542638]
[1759019801974,9.74749035,109960.0,109950.0,0.02542638]
[1759019802865,9.72778403,109960.0,109950.0,0.02542638]
[1759019803376,9.8164955,109960.0,109950.0,0.02542638]
[1759019803805,9.34554403,109960.0,109950.0,0.02542638]
[1759019804010,10.10710403,109960.0,109950.0,0.02542638]
[1759019804659,9.92558495,109960.0,109950.0,0.02542638]
[1759019805857,9.16402495,109960.0,109950.0,0.02542638]
[1759019806071,9.92558495,109960.0,109950.0,0.02542638]
[1759019806291,9.76259143,109960.0,109950.0,0.02542638]
[1759019806664,9.58059597,109960.0,109950.0,0.02542638]
[1759019806895,9.63529597,109960.0,109950.0,0.02542638]
[1759019807097,9.58059597,109960.0,109950.0,0.02542638]
[1759019810196,9.20127597,109960.0,109950.0,0.02542638]
[1759019811466,9.18700405,109960.0,109950.0,0.02542638]
[1759019813882,8.85748166,109960.0,109950.0,0.02753638]
[1759019814087,8.85748166,109960.0,109950.0,0.03058638]
[1759019814282,8.77691399,109960.0,109950.0,0.03058638]
[1759019814490,8.87175399,109960.0,109950.0,0.03058638]
[1759019814735,8.48947399,109960.0,109950.0,0.03058638]
[1759019814940,8.84160209,109960.0,109950.0,0.03058638]
[1759019815260,8.83660209,109960.0,109950.0,0.03058638]
[1759019815695,8.83960209,109960.0,109950.0,0.03058638]
[1759019815906,8.83460209,109960.0,109950.0,0.03058638]
[1759019816129,8.45232209,109960.0,109950.0,0.03058638]
[1759019816316,8.83760209,109960.0,109950.0,0.03058638]
[1759019818495,8.45532209,109960.0,109950.0,0.03058638]
[1759019818721,8.83760209,109960.0,109950.0,0.03058638]
[1759019818939,8.82332976,109960.0,109950.0,0.03058638]
[1759019820683,8.44104976,109960.0,109950.0,0.03058638]
[1759019820910,8.21526898,109960.0,109950.0,0.03058638]
[1759019821093,8.72332976,109960.0,109950.0,0.03058638]
[1759019821446,8.34104976,109960.0,109950.0,0.03058638]
[1759019821672,8.4335705,109960.0,109950.0,0.03058638]
[1759019821878,8.4305705,109960.0,109950.0,0.03058638]
[1759019822118,8.73260089,109960.0,109950.0,0.03058638]
[1759019822652,8.73360089,109960.0,109950.0,0.03058638]
[1759019823066,8.73356089,109960.0,109950.0,0.03058638]
[1759019824502,8.70618364,109960.0,109950.0,0.03058638]
[1759019831830,8.69191251,109960.0,109950.0,0.03058638]
[1759019834677,8.70618325,109960.0,109950.0,0.03058638]
[1759019836115,8.50377754,109960.0,109950.0,0.03058638]
[1759019839465,8.12153754,109960.0,109950.0,0.03058638]
[1759019839666,8.50369754,109960.0,109950.0,0.03058638]
[1759019840422,8.4894268,109960.0,109950.0,0.03058638]
[1759019841465,8.45157775,109960.0,109950.0,0.03058638]
[1759019843191,8.46584823,109960.0,109950.0,0.03058638]
[1759019843626,7.85778745,109960.0,109950.0,0.03058638]
[1759019843963,8.46584823,109960.0,109950.0,0.03058638]
[1759019846532,8.54184475,109960.0,109950.0,0.03058638]
[1759019847568,8.15968475,109960.0,109950.0,0.03058638]
[1759019847783,8.54180475,109960.0,109950.0,0.03058638]
[1759019849800,8.54180475,109960.0,109950.0,0.08058638]
[1759019849801,7.74978133,109960.0,109950.0,0.08058638]
[1759019850011,8.02283085,109960.0,109950.0,0.08058638]
[1759019850638,8.02183085,109960.0,109950.0,0.08058638]
[1759019850883,8.02183085,109960.0,109950.0,0.08358638]
[1759019851116,7.73351085,109960.0,109950.0,0.08358638]
[1759019851292,8.02083085,109960.0,109950.0,0.08358638]
[1759019851508,8.02083085,109960.0,109950.0,0.08658638]
[1759019852114,8.02084583,109960.0,109950.0,0.08658638]
[1759019852947,7.57907672,109960.0,109950.0,0.08658638]
[1759019853149,8.03511492,109960.0,109950.0,0.08658638]
[1759019855131,7.57907672,109960.0,109950.0,0.08658638]
[1759019855540,8.03511492,109960.0,109950.0,0.08658638]
[1759019860789,8.03510724,109960.0,109950.0,0.08658638]
[1759019870342,8.02083815,109960.0,109950.0,0.08658638]
[1759019873240,8.03510704,109960.0,109950.0,0.08658638]
[1759019875502,8.03510704,109960.0,109950.0,0.08142638]
[1759019876414,8.03510704,109960.0,109950.0,0.08664638]
[1759019876918,8.03510704,109960.0,109950.0,0.08355638]
[1759019878197,8.03510704,109960.0,109950.0,0.08664638]
[1759019882379,8.44501046,109960.0,109950.0,0.08142638]
[1759019882614,8.43074157,109960.0,109950.0,0.08142638]
[1759019882849,8.4345318,109960.0,109950.0,0.08142638]
[1759019883289,8.45423812,109960.0,109950.0,0.08142638]
[1759019883699,8.45423812,109960.0,109950.0,0.07842638]
[1759019884109,8.45423812,109960.0,109950.0,0.07942638]
[1759019884332,8.45423812,109960.0,109950.0,0.02642638]
[1759019884333,8.54903812,109960.0,109950.0,0.02642638]
[1759019884771,8.54903812,109960.0,109950.0,0.02742638]
[1759019885213,8.57641409,109960.0,109950.0,0.02742638]
[1759019885432,9.28600339,109960.0,109950.0,0.02642638]
[1759019885655,9.22956154,109960.0,109950.0,0.02542638]
[1759019885889,9.21729075,109960.0,109950.0,0.02542638]
[1759019887520,9.24644265,109960.0,109950.0,0.02542638]
[1759019887745,9.24544265,109960.0,109950.0,0.02542638]
[1759019887930,9.25144265,109960.0,109950.0,0.02542638]
[1759019888150,9.63068265,109960.0,109950.0,0.02542638]
[1759019888359,9.62768265,109960.0,109950.0,0.02542638]
[1759019888576,9.62468265,109960.0,109950.0,0.02542638]
[1759019888791,9.62968265,109960.0,109950.0,0.02542638]
[1759019888997,9.63368265,109960.0,109950.0,0.02542638]
[1759019889227,9.64795507,109960.0,109950.0,0.02542638]
[1759019889865,9.64795507,109960.0,109950.0,0.02248956]
[1759019890676,9.64416484,109960.0,109950.0,0.02248956]
[1759019890877,0.21205276,109950.0,109940.0,0.0004]
[1759019891073,9.11937299,109950.0,109940.0,0.00044638]
[1759019891281,9.14310299,109950.0,109940.0,0.00044638]
[1759019892059,0.18193395,109930.0,109920.0,0.0004]
[1759019892316,8.35475856,109930.0,109920.0,0.00053916]
[1759019892535,8.37848856,109930.0,109920.0,0.00053916]
[1759019892753,8.42015022,109930.0,109920.0,0.00053916]
[1759019892970,8.58215051,109930.0,109920.0,0.00053916]
[1759019893658,8.18338854,109930.0,109920.0,0.00053916]
[1759019893870,8.56538854,109930.0,109920.0,0.00253916]
[1759019894080,8.56538854,109930.0,109920.0,0.00453916]
[1759019894295,8.18338854,109930.0,109920.0,0.00253916]
[1759019894512,8.56542854,109930.0,109920.0,0.00053916]
[1759019894734,8.16568222,109930.0,109920.0,0.00053916]
[1759019894980,8.16768222,109930.0,109920.0,0.00053916]
[1759019895201,8.58491859,109930.0,109920.0,0.00053916]
[1759019895411,8.91708779,109930.0,109920.0,0.00053916]
[1759019895622,9.29912779,109930.0,109920.0,0.00053916]
[1759019896518,9.28485297,109930.0,109920.0,0.00053916]
[1759019897379,9.28867552,109930.0,109920.0,0.00053916]
[1759019899124,0.1819505,109920.0,109910.0,0.02333]
[1759019899349,9.19229398,109920.0,109910.0,0.00086419]
[1759019899520,9.21602398,109920.0,109910.0,0.00086419]
[1759019899758,8.92878398,109920.0,109910.0,0.00086419]
[1759019899963,9.69022398,109920.0,109910.0,0.00086419]
[1759019900207,9.69026398,109920.0,109910.0,0.00086419]
[1759019900419,9.69326398,109920.0,109910.0,0.00086419]
[1759019900970,9.69626398,109920.0,109910.0,0.00086419]
[1759019901800,8.93478398,109920.0,109910.0,0.00086419]
[1759019901960,9.58206051,109920.0,109910.0,0.00086419]
[1759019902384,0.18196706,109910.0,109900.0,0.02293]
[1759019902750,0.18198362,109900.0,109890.0,0.00351]
[1759019902918,7.97280823,109900.0,109890.0,0.00363656]
[1759019903133,7.97280823,109900.0,109890.0,0.00564656]
[1759019903134,8.37977823,109900.0,109890.0,0.00564656]
[1759019903533,8.40717072,109900.0,109890.0,0.00564656]
[1759019904363,8.40717072,109900.0,109890.0,0.00764656]
[1759019904717,8.40717072,109900.0,109890.0,0.00964656]
[1759019905577,8.46165034,109900.0,109890.0,0.00964656]
[1759019906000,8.34335381,109900.0,109890.0,0.00964656]
[1759019906218,8.43819381,109900.0,109890.0,0.00964656]
[1759019906606,8.05216932,109900.0,109890.0,0.00964656]
[1759019906812,8.05852149,109900.0,109890.0,0.00964656]
[1759019908450,8.06057149,109900.0,109890.0,0.00310399]
[1759019910273,7.96368149,109900.0,109890.0,0.00310399]
[1759019910484,8.05852149,109900.0,109890.0,0.00621399]
[1759019911100,7.67640149,109900.0,109890.0,0.00621399]
[1759019911321,8.05852149,109900.0,109890.0,0.00621399]
[1759019911634,7.67640149,109900.0,109890.0,0.00621399]
[1759019911874,8.05852149,109900.0,109890.0,0.00621399]
[1759019912420,7.67640149,109900.0,109890.0,0.00621399]
[1759019912624,8.05852149,109900.0,109890.0,0.00621399]
[1759019913096,7.67640149,109900.0,109890.0,0.00621399]
[1759019913306,8.05852149,109900.0,109890.0,0.00621399]
[1759019913985,7.67640149,109900.0,109890.0,0.00621399]
[1759019914217,8.05852149,109900.0,109890.0,0.00621399]
[1759019914440,0.18200018,109890.0,109880.0,0.07451]
[1759019914661,7.88043247,109890.0,109880.0,0.0524564]
[1759019914879,7.90528247,109890.0,109880.0,0.0524564]
[1759019915522,7.91956114,109890.0,109880.0,0.0524564]
[1759019915753,7.91956114,109890.0,109880.0,0.0544564]
[1759019916306,7.45028096,109890.0,109880.0,0.0574164]
[1759019916518,7.43600229,109890.0,109880.0,0.0604164]
[1759019916699,7.72328229,109890.0,109880.0,0.0604164]
[1759019916897,7.51348065,109890.0,109880.0,0.0604164]
[1759019917108,6.92177412,109890.0,109880.0,0.07861807]
[1759019917319,7.20905412,109890.0,109880.0,0.07861807]
[1759019917938,7.51348065,109890.0,109880.0,0.07861807]
[1759019919095,6.92177412,109890.0,109880.0,0.07861807]
[1759019919304,6.92177412,109890.0,109880.0,0.0604164]
[1759019919690,6.9218069,109890.0,109880.0,0.0604164]
[1759019920286,6.9218069,109890.0,109880.0,0.29997061]
[1759019920919,0.03123495,109890.0,109880.0,0.29997061]
[1759019921121,0.03123495,109890.0,109880.0,0.60439714]
[1759019921323,0.03123495,109890.0,109880.0,0.69723714]
[1759019921745,0.03123495,109890.0,109880.0,0.70123714]
[1759019922202,0.03123495,109890.0,109880.0,0.69723714]
[1759019922405,0.03123495,109890.0,109880.0,0.30097061]
[1759019922606,0.03123495,109890.0,109880.0,0.50707387]
[1759019922814,8.03123495,109890.0,109880.0,0.09480197]
[1759019923035,8.33566148,109890.0,109880.0,0.09480197]
[1759019923243,8.33771148,109890.0,109880.0,0.09184197]
[1759019923441,8.33566148,109890.0,109880.0,0.09480197]
[1759019927440,8.80998166,109890.0,109880.0,0.08983197]
[1759019927877,8.62798148,109890.0,109880.0,0.08983197]
[1759019928088,8.62798492,109890.0,109880.0,0.08983197]
[1759019928314,8.62798492,109890.0,109880.0,0.07783197]
[1759019928713,8.62798492,109890.0,109880.0,0.08183197]
[1759019928924,8.62798492,109890.0,109880.0,0.08583197]
[1759019929128,8.62798492,109890.0,109880.0,0.08183197]
[1759019929533,8.64226277,109890.0,109880.0,0.08583197]
[1759019929919,8.64226277,109890.0,109880.0,0.0584464]
[1759019930576,8.63923277,109890.0,109880.0,0.0604064]
[1759019930790,8.35497277,109890.0,109880.0,0.0604064]
[1759019931038,8.63718277,109890.0,109880.0,0.0604064]
[1759019932511,8.63718309,109890.0,109880.0,0.0604064]
[1759019933517,8.34994309,109890.0,109880.0,0.0604064]
[1759019933720,8.63718309,109890.0,109880.0,0.0604064]
[1759019934208,8.63926309,109890.0,109880.0,0.0604064]
[1759019934540,8.64224309,109890.0,109880.0,0.0604064]
[1759019934950,8.33275656,109890.0,109880.0,0.0604064]
[1759019935156,8.63718309,109890.0,109880.0,0.0604064]
[1759019935365,8.35202309,109890.0,109880.0,0.0604064]
[1759019935626,8.63926309,109890.0,109880.0,0.0604064]
[1759019936782,8.62498524,109890.0,109880.0,0.0604064]
[1759019937502,8.33774524,109890.0,109880.0,0.0604064]
[1759019937714,8.31847871,109890.0,109880.0,0.0633664]
[1759019937891,8.03123871,109890.0,109880.0,0.08779405]
[1759019938537,8.33566524,109890.0,109880.0,0.08779405]
[1759019938739,8.33566524,109890.0,109880.0,0.10599572]
[1759019939870,8.3499429,109890.0,109880.0,0.10599572]
[1759019940081,8.3520229,109890.0,109880.0,0.10599572]
[1759019940789,8.3499429,109890.0,109880.0,0.09075405]
[1759019941821,8.3499429,109890.0,109880.0,0.08779405]
[1759019942021,8.04551637,109890.0,109880.0,0.09075405]
[1759019943542,8.04551637,109890.0,109880.0,0.08779405]
[1759019944512,8.3499429,109890.0,109880.0,0.08779405]
[1759019944909,8.3499429,109890.0,109880.0,0.0604064]
[1759019945721,8.3520229,109890.0,109880.0,0.0604064]
[1759019945917,8.3550029,109890.0,109880.0,0.0604064]
[1759019946121,8.3550029,109890.0,109880.0,0.0584464]
[1759019948382,8.05057637,109890.0,109880.0,0.0584464]
[1759019948565,8.3520229,109890.0,109880.0,0.0604064]
[1759019948954,8.3550029,109890.0,109880.0,0.0584464]
[1759019949380,8.34072524,109890.0,109880.0,0.0584464]
[1759019951717,8.33774524,109890.0,109880.0,0.0604864]
[1759019951920,8.03123871,109890.0,109880.0,0.0634464]
[1759019952452,8.03123871,109890.0,109880.0,0.0604864]
[1759019953222,8.03321871,109890.0,109880.0,0.0604864]
[1759019955608,8.03633871,109890.0,109880.0,0.0604864]
[1759019957777,8.03633871,109890.0,109880.0,0.0584464]
[1759019959790,8.34076524,109890.0,109880.0,0.0584464]
[1759019959987,8.03633871,109890.0,109880.0,0.0584464]
[1759019960192,8.03321871,109890.0,109880.0,0.26076481]
[1759019960388,8.03321871,109890.0,109880.0,0.0584464]
[1759019960389,8.03627871,109890.0,109880.0,0.0584464]
[1759019960650,8.03627871,109890.0,109880.0,0.07664807]
[1759019962089,8.34070524,109890.0,109880.0,0.07664807]
[1759019962923,8.34070524,109890.0,109880.0,0.0584464]
[1759019964808,8.62790524,109890.0,109880.0,0.0584464]
[1759019965205,8.62792413,109890.0,109880.0,0.0584464]
[1759019966472,8.62792413,109890.0,109880.0,0.07664807]
[1759019967928,8.3234976,109890.0,109880.0,0.07664807]
[1759019968192,8.62792413,109890.0,109880.0,0.07664807]
[1759019968412,8.62792413,109890.0,109880.0,0.0584464]
[1759019968610,8.551711,109890.0,109880.0,0.0584464]
[1759019969438,8.56598805,109890.0,109880.0,0.0584464]
[1759019971834,8.37387055,109890.0,109880.0,0.0584464]
[1759019972168,8.37387055,109890.0,109880.0,0.0822764]
[1759019973453,8.08667055,109890.0,109880.0,0.0822764]
[1759019973645,8.37383055,109890.0,109880.0,0.0822764]
[1759019974207,7.85845715,109890.0,109880.0,0.0822764]
[1759019974423,8.08667055,109890.0,109880.0,0.0822764]
[1759019977466,8.0723935,109890.0,109880.0,0.0822764]
[1759019979424,7.86014082,109890.0,109880.0,0.10047807]
[1759019980381,7.85510082,109890.0,109880.0,0.28459481]